[Event "Titled Tuesday Blitz March 08 Early 2022"]
[White "Estrada Nieto, Julian"]
[Black "Zierk, Steven"]
[WhiteFideId "5101018"]
[BlackFideId "2034255"]
[WhiteElo "2246"]
[BlackElo "2494"]
[Result "0-1"]
[Round "01"]
[TimeControl "180+1"]
[Date "2022.03.08"]
[WhiteClock "0:00:01"]
[BlackClock "0:00:28"]

1. e4 {[%clk 0:03:00]}  e6 {[%clk 0:02:59]} 2. d4 {[%clk 0:02:59]}  d5 {[%clk 0:02:59]} 3. Nd2 {[%clk 0:02:59]}  c5 {[%clk 0:02:58]} 4. exd5 {[%clk 0:02:59]}  Qxd5 {[%clk 0:02:59]} 5. Ngf3 {[%clk 0:02:59]}  cxd4 {[%clk 0:02:59]} 6. Bc4 {[%clk 0:02:59]}  Qd7 {[%clk 0:02:59]} 7. O-O {[%clk 0:03:00]}  Nc6 {[%clk 0:03:00]} 8. Nb3 {[%clk 0:03:00]}  Nf6 {[%clk 0:03:00]} 9. Nbxd4 {[%clk 0:03:00]}  Nxd4 {[%clk 0:03:01]} 10. Nxd4 {[%clk 0:03:00]}  a6 {[%clk 0:03:02]} 11. Bb3 {[%clk 0:02:55]}  Bc5 {[%clk 0:02:52]} 12. Be3 {[%clk 0:02:47]}  Qc7 {[%clk 0:02:52]} 13. c3 {[%clk 0:02:42]}  e5 {[%clk 0:02:47]} 14. Nc2 {[%clk 0:02:39]}  O-O {[%clk 0:02:44]} 15. Bxc5 {[%clk 0:02:23]}  Qxc5 {[%clk 0:02:43]} 16. Qe2 {[%clk 0:02:24]}  a5 {[%clk 0:02:33]} 17. a3 {[%clk 0:02:14]}  Qb6 {[%clk 0:02:26]} 18. Bc4 {[%clk 0:01:56]}  Bf5 {[%clk 0:02:21]} 19. Ne3 {[%clk 0:01:52]}  Bg6 {[%clk 0:02:20]} 20. Nd5 {[%clk 0:01:47]}  Nxd5 {[%clk 0:02:18]} 21. Bxd5 {[%clk 0:01:48]}  Rad8 {[%clk 0:02:12]} 22. c4 {[%clk 0:01:47]}  Rfe8 {[%clk 0:02:09]} 23. Rad1 {[%clk 0:01:47]}  Kh8 {[%clk 0:02:06]} 24. h4 {[%clk 0:01:40]}  f6 {[%clk 0:02:00]} 25. h5 {[%clk 0:01:33]}  Bf5 {[%clk 0:02:00]} 26. Rd2 {[%clk 0:01:28]}  Be6 {[%clk 0:01:55]} 27. Rfd1 {[%clk 0:01:25]}  Bxd5 {[%clk 0:01:55]} 28. Rxd5 {[%clk 0:01:24]}  Rc8 {[%clk 0:01:53]} 29. Rd7 {[%clk 0:00:58]}  Qe6 {[%clk 0:01:47]} 30. b3 {[%clk 0:00:46]}  Re7 {[%clk 0:01:30]} 31. R7d6 {[%clk 0:00:38]}  Qf5 {[%clk 0:01:26]} 32. h6 {[%clk 0:00:24]}  gxh6 {[%clk 0:01:22]} 33. Qd2 {[%clk 0:00:21]}  Qg6 {[%clk 0:01:13]} 34. Rd8+ {[%clk 0:00:16]}  Rxd8 {[%clk 0:01:11]} 35. Qxd8+ {[%clk 0:00:15]}  Re8 {[%clk 0:01:11]} 36. Qc7 {[%clk 0:00:12]}  Rg8 {[%clk 0:00:58]} 37. Qxb7 {[%clk 0:00:12]}  e4 {[%clk 0:00:58]} 38. g3 {[%clk 0:00:12]}  e3 {[%clk 0:00:51]} 39. Qf3 {[%clk 0:00:10]}  exf2+ {[%clk 0:00:50]} 40. Kxf2 {[%clk 0:00:10]}  Qc2+ {[%clk 0:00:48]} 41. Kg1 {[%clk 0:00:09]}  Rxg3+ {[%clk 0:00:45]} 42. Qxg3 {[%clk 0:00:08]}  Qxd1+ {[%clk 0:00:45]} 43. Kh2 {[%clk 0:00:08]}  Qh5+ {[%clk 0:00:43]} 44. Kg2 {[%clk 0:00:07]}  Qe2+ {[%clk 0:00:42]} 45. Kh3 {[%clk 0:00:06]}  Qe6+ {[%clk 0:00:41]} 46. Kg2 {[%clk 0:00:06]}  Qe4+ {[%clk 0:00:39]} 47. Kf2 {[%clk 0:00:06]}  Qc2+ {[%clk 0:00:38]} 48. Kg1 {[%clk 0:00:06]}  Qc1+ {[%clk 0:00:36]} 49. Kh2 {[%clk 0:00:06]}  Qxa3 {[%clk 0:00:33]} 50. Qb8+ {[%clk 0:00:06]}  Kg7 {[%clk 0:00:33]} 51. Qc7+ {[%clk 0:00:06]}  Kg6 {[%clk 0:00:34]} 52. Qg3+ {[%clk 0:00:05]}  Kf7 {[%clk 0:00:32]} 53. Qc7+ {[%clk 0:00:05]}  Ke6 {[%clk 0:00:32]} 54. Qc6+ {[%clk 0:00:04]}  Qd6+ {[%clk 0:00:32]} 55. Qxd6+ {[%clk 0:00:03]}  Kxd6 {[%clk 0:00:33]} 56. Kg3 {[%clk 0:00:03]}  Kc5 {[%clk 0:00:30]} 57. Kg4 {[%clk 0:00:04]}  a4 {[%clk 0:00:28]} 58. bxa4 {[%clk 0:00:03]}  Kxc4 {[%clk 0:00:29]} 59. Kf5 {[%clk 0:00:04]}  h5 {[%clk 0:00:29]} 60. Kf4 {[%clk 0:00:02]}  Kb4 {[%clk 0:00:29]} 61. Kg3 {[%clk 0:00:02]}  f5 {[%clk 0:00:27]} 62. Kh4 {[%clk 0:00:03]}  f4 {[%clk 0:00:28]} 63. Kxh5 {[%clk 0:00:01]}  f3 {[%clk 0:00:28]} 0-1


[Site "https://www.chess.com"]

[Event "Titled Tuesday Blitz March 08 Early 2022"]
[White "Gatterer, Florian"]
[Black "Ruperez Benito, Antonio"]
[WhiteFideId "811688"]
[BlackFideId "22245049"]
[WhiteElo "2218"]
[BlackElo "2249"]
[Result "0-1"]
[Round "01"]
[TimeControl "180+1"]
[Date "2022.03.09"]
[WhiteClock "0:00:06"]
[BlackClock "0:00:52"]

1. b3 {[%clk 0:02:54]}  e5 {[%clk 0:02:59]} 2. Bb2 {[%clk 0:02:46]}  Nc6 {[%clk 0:03:00]} 3. e3 {[%clk 0:02:44]}  d5 {[%clk 0:02:50]} 4. Bb5 {[%clk 0:02:39]}  Bd6 {[%clk 0:02:47]} 5. f4 {[%clk 0:02:38]}  Qh4+ {[%clk 0:02:45]} 6. g3 {[%clk 0:02:33]}  Qe7 {[%clk 0:02:45]} 7. fxe5 {[%clk 0:02:28]}  Bxe5 {[%clk 0:02:44]} 8. Nc3 {[%clk 0:02:28]}  Nf6 {[%clk 0:02:31]} 9. Nf3 {[%clk 0:02:27]}  Bd6 {[%clk 0:02:29]} 10. O-O {[%clk 0:02:26]}  O-O {[%clk 0:02:28]} 11. Ne2 {[%clk 0:02:15]}  Bh3 {[%clk 0:02:27]} 12. Re1 {[%clk 0:02:09]}  Bg4 {[%clk 0:02:25]} 13. Rf1 {[%clk 0:02:00]}  Ne5 {[%clk 0:02:22]} 14. Nxe5 {[%clk 0:01:37]}  Bxe5 {[%clk 0:02:23]} 15. Bxe5 {[%clk 0:01:34]}  Qxe5 {[%clk 0:02:24]} 16. Qe1 {[%clk 0:01:34]}  c6 {[%clk 0:02:21]} 17. Bd3 {[%clk 0:01:33]}  Bh3 {[%clk 0:02:19]} 18. Rf4 {[%clk 0:01:27]}  g5 {[%clk 0:02:02]} 19. Rf3 {[%clk 0:01:23]}  Ne4 {[%clk 0:01:55]} 20. Nd4 {[%clk 0:00:38]}  c5 {[%clk 0:01:46]} 21. Ne2 {[%clk 0:00:33]}  f5 {[%clk 0:01:44]} 22. Nc3 {[%clk 0:00:31]}  Rae8 {[%clk 0:01:34]} 23. Nxd5 {[%clk 0:00:19]}  Kg7 {[%clk 0:01:04]} 24. Nc3 {[%clk 0:00:19]}  a6 {[%clk 0:01:03]} 25. Bxe4 {[%clk 0:00:11]}  fxe4 {[%clk 0:01:04]} 26. Rxf8 {[%clk 0:00:09]}  Rxf8 {[%clk 0:01:01]} 27. Qe2 {[%clk 0:00:09]}  Qf5 {[%clk 0:00:57]} 28. Re1 {[%clk 0:00:08]}  Bg4 {[%clk 0:00:54]} 29. Qf1 {[%clk 0:00:06]}  Qd7 {[%clk 0:00:52]} 0-1


[Site "https://www.chess.com"]

[Event "Titled Tuesday Blitz March 08 Early 2022"]
[White "Goltsev, Dmitry"]
[Black "Goldin, Roman"]
[WhiteFideId "24176710"]
[BlackFideId "2803860"]
[WhiteElo "2273"]
[BlackElo "2312"]
[Result "1-0"]
[Round "01"]
[TimeControl "180+1"]
[Date "2022.03.09"]
[WhiteClock "0:00:09"]
[BlackClock "0:00:05"]

1. e4 {[%clk 0:02:56]}  Nc6 {[%clk 0:02:56]} 2. Nf3 {[%clk 0:02:56]}  e5 {[%clk 0:02:52]} 3. Nc3 {[%clk 0:02:56]}  g6 {[%clk 0:02:51]} 4. d4 {[%clk 0:02:54]}  exd4 {[%clk 0:02:51]} 5. Nxd4 {[%clk 0:02:55]}  Bg7 {[%clk 0:02:51]} 6. Be3 {[%clk 0:02:51]}  Nf6 {[%clk 0:02:49]} 7. Be2 {[%clk 0:02:51]}  O-O {[%clk 0:02:48]} 8. O-O {[%clk 0:02:51]}  Re8 {[%clk 0:02:48]} 9. Nxc6 {[%clk 0:02:43]}  bxc6 {[%clk 0:02:47]} 10. Bf3 {[%clk 0:02:43]}  d6 {[%clk 0:02:25]} 11. e5 {[%clk 0:02:38]}  Rxe5 {[%clk 0:02:24]} 12. Bxc6 {[%clk 0:02:36]}  Rb8 {[%clk 0:02:23]} 13. Bxa7 {[%clk 0:02:34]}  Rxb2 {[%clk 0:02:20]} 14. Bd4 {[%clk 0:02:33]}  Re6 {[%clk 0:02:15]} 15. Nb5 {[%clk 0:02:27]}  Rb4 {[%clk 0:01:53]} 16. c3 {[%clk 0:02:23]}  Rc4 {[%clk 0:01:49]} 17. Bf3 {[%clk 0:02:20]}  Ba6 {[%clk 0:01:43]} 18. a4 {[%clk 0:02:16]}  c5 {[%clk 0:01:40]} 19. Bxf6 {[%clk 0:02:14]}  Rxf6 {[%clk 0:01:34]} 20. Bd5 {[%clk 0:02:05]}  Rcf4 {[%clk 0:01:31]} 21. f3 {[%clk 0:02:03]}  h5 {[%clk 0:01:19]} 22. Re1 {[%clk 0:01:52]}  h4 {[%clk 0:01:18]} 23. Bc6 {[%clk 0:01:47]}  Qb6 {[%clk 0:01:14]} 24. Re8+ {[%clk 0:01:40]}  Kh7 {[%clk 0:01:13]} 25. Bd5 {[%clk 0:01:19]}  Bxb5 {[%clk 0:01:12]} 26. axb5 {[%clk 0:01:20]}  Qxb5 {[%clk 0:01:12]} 27. Raa8 {[%clk 0:01:07]}  R4f5 {[%clk 0:01:03]} 28. c4 {[%clk 0:01:01]}  Qb2 {[%clk 0:01:00]} 29. Qe1 {[%clk 0:00:49]}  h3 {[%clk 0:00:59]} 30. Re2 {[%clk 0:00:34]}  Qd4+ {[%clk 0:00:51]} 31. Kh1 {[%clk 0:00:34]}  hxg2+ {[%clk 0:00:41]} 32. Rxg2 {[%clk 0:00:28]}  Re5 {[%clk 0:00:37]} 33. Be4 {[%clk 0:00:19]}  Qxc4 {[%clk 0:00:33]} 34. Qh4+ {[%clk 0:00:18]}  Bh6 {[%clk 0:00:26]} 35. Qxf6 {[%clk 0:00:12]}  Rxe4 {[%clk 0:00:05]} 36. Rh8# {[%clk 0:00:09]} 1-0


[Site "https://www.chess.com"]

[Event "Titled Tuesday Blitz March 08 Early 2022"]
[White "Hambleton, Aman"]
[Black "Tarasova, Viktoriya"]
[WhiteFideId "2606577"]
[BlackFideId "4175840"]
[WhiteElo "2552"]
[BlackElo "2182"]
[Result "1-0"]
[Round "01"]
[TimeControl "180+1"]
[Date "2022.03.09"]
[WhiteClock "0:00:03"]
[BlackClock "0:00:19"]

1. d4 {[%clk 0:03:00]}  Nf6 {[%clk 0:02:59]} 2. c4 {[%clk 0:02:58]}  e6 {[%clk 0:02:59]} 3. Nc3 {[%clk 0:02:55]}  Bb4 {[%clk 0:02:58]} 4. e3 {[%clk 0:02:51]}  O-O {[%clk 0:02:58]} 5. Ne2 {[%clk 0:02:50]}  d5 {[%clk 0:02:57]} 6. a3 {[%clk 0:02:49]}  Bd6 {[%clk 0:02:56]} 7. c5 {[%clk 0:02:43]}  Be7 {[%clk 0:02:56]} 8. b4 {[%clk 0:02:43]}  b6 {[%clk 0:02:56]} 9. Nf4 {[%clk 0:02:41]}  a5 {[%clk 0:02:55]} 10. Rb1 {[%clk 0:02:40]}  axb4 {[%clk 0:02:53]} 11. axb4 {[%clk 0:02:41]}  c6 {[%clk 0:02:54]} 12. Bd2 {[%clk 0:02:35]}  Ba6 {[%clk 0:02:53]} 13. Bxa6 {[%clk 0:02:22]}  Nxa6 {[%clk 0:02:50]} 14. O-O {[%clk 0:02:23]}  bxc5 {[%clk 0:02:50]} 15. bxc5 {[%clk 0:02:21]}  Nc7 {[%clk 0:02:42]} 16. Rb6 {[%clk 0:02:08]}  Qd7 {[%clk 0:02:42]} 17. Nd3 {[%clk 0:02:08]}  Qe8 {[%clk 0:02:07]} 18. Nb4 {[%clk 0:01:48]}  Rb8 {[%clk 0:01:45]} 19. Rxb8 {[%clk 0:01:12]}  Qxb8 {[%clk 0:01:44]} 20. Nxc6 {[%clk 0:01:12]}  Qe8 {[%clk 0:01:45]} 21. Qa4 {[%clk 0:01:03]}  Ne4 {[%clk 0:01:38]} 22. Nxe7+ {[%clk 0:00:26]}  Qxe7 {[%clk 0:01:37]} 23. Qc2 {[%clk 0:00:20]}  f5 {[%clk 0:01:36]} 24. Be1 {[%clk 0:00:13]}  Rf6 {[%clk 0:01:31]} 25. f3 {[%clk 0:00:13]}  Nxc3 {[%clk 0:01:29]} 26. Qxc3 {[%clk 0:00:11]}  Rg6 {[%clk 0:01:26]} 27. Bg3 {[%clk 0:00:10]}  h5 {[%clk 0:01:25]} 28. Rb1 {[%clk 0:00:06]}  h4 {[%clk 0:01:22]} 29. Bf4 {[%clk 0:00:07]}  Ne8 {[%clk 0:01:04]} 30. c6 {[%clk 0:00:06]}  h3 {[%clk 0:01:00]} 31. g3 {[%clk 0:00:06]}  e5 {[%clk 0:00:35]} 32. Bxe5 {[%clk 0:00:06]}  f4 {[%clk 0:00:25]} 33. exf4 {[%clk 0:00:04]}  Nc7 {[%clk 0:00:19]} 34. Rb7 {[%clk 0:00:03]} 1-0


[Site "https://www.chess.com"]

[Event "Titled Tuesday Blitz March 08 Early 2022"]
[White "Havanecz, Bianka"]
[Black "Oganian, Miran"]
[WhiteFideId "704814"]
[BlackFideId "4122488"]
[WhiteElo "2383"]
[BlackElo "2357"]
[Result "0-1"]
[Round "01"]
[TimeControl "180+1"]
[Date "2022.03.09"]
[WhiteClock "0:00:08"]
[BlackClock "0:01:30"]

1. d4 {[%clk 0:02:59]}  e6 {[%clk 0:02:59]} 2. c4 {[%clk 0:02:59]}  d5 {[%clk 0:02:59]} 3. Nf3 {[%clk 0:02:55]}  a6 {[%clk 0:03:00]} 4. cxd5 {[%clk 0:02:49]}  exd5 {[%clk 0:03:01]} 5. Nc3 {[%clk 0:02:48]}  Nf6 {[%clk 0:03:01]} 6. Bg5 {[%clk 0:02:43]}  c6 {[%clk 0:03:01]} 7. e3 {[%clk 0:02:43]}  Be7 {[%clk 0:03:02]} 8. Be2 {[%clk 0:02:28]}  Nbd7 {[%clk 0:03:02]} 9. O-O {[%clk 0:02:28]}  O-O {[%clk 0:03:02]} 10. Rb1 {[%clk 0:02:25]}  a5 {[%clk 0:03:02]} 11. Qc2 {[%clk 0:02:19]}  Re8 {[%clk 0:03:02]} 12. a3 {[%clk 0:02:04]}  Nf8 {[%clk 0:03:02]} 13. b4 {[%clk 0:02:04]}  axb4 {[%clk 0:03:03]} 14. axb4 {[%clk 0:02:04]}  Ng6 {[%clk 0:02:42]} 15. b5 {[%clk 0:01:56]}  Bd6 {[%clk 0:02:32]} 16. bxc6 {[%clk 0:01:53]}  bxc6 {[%clk 0:02:33]} 17. Na4 {[%clk 0:01:31]}  h6 {[%clk 0:02:33]} 18. Bxf6 {[%clk 0:01:23]}  Qxf6 {[%clk 0:02:34]} 19. Nb6 {[%clk 0:01:20]}  Bf5 {[%clk 0:02:30]} 20. Qd2 {[%clk 0:01:04]}  Bxb1 {[%clk 0:02:22]} 21. Nxa8 {[%clk 0:00:59]}  Rb8 {[%clk 0:02:09]} 22. Qa5 {[%clk 0:00:35]}  Be4 {[%clk 0:02:08]} 23. Ra1 {[%clk 0:00:20]}  Bxf3 {[%clk 0:01:51]} 24. Bxf3 {[%clk 0:00:20]}  Nh4 {[%clk 0:01:51]} 25. Be2 {[%clk 0:00:15]}  Rb2 {[%clk 0:01:39]} 26. Re1 {[%clk 0:00:11]}  Bb4 {[%clk 0:01:32]} 27. Qb6 {[%clk 0:00:08]}  Bxe1 {[%clk 0:01:30]} 28. Qxb2 {[%clk 0:00:08]}  Qxf2+ {[%clk 0:01:29]} 29. Kh1 {[%clk 0:00:08]}  Qxg2# {[%clk 0:01:30]} 0-1


[Site "https://www.chess.com"]

[Event "Titled Tuesday Blitz March 08 Early 2022"]
[White "Hernandez Jimenez, Alexander Andres"]
[Black "Arabidze, Meri"]
[WhiteFideId "3900452"]
[BlackFideId "13604040"]
[WhiteElo "2082"]
[BlackElo "2335"]
[Result "1-0"]
[Round "01"]
[TimeControl "180+1"]
[Date "2022.03.09"]
[WhiteClock "0:00:26"]
[BlackClock "0:00:01"]

1. e4 {[%clk 0:02:50]}  c5 {[%clk 0:02:59]} 2. Nf3 {[%clk 0:02:50]}  e6 {[%clk 0:03:00]} 3. d4 {[%clk 0:02:50]}  cxd4 {[%clk 0:03:01]} 4. Nxd4 {[%clk 0:02:50]}  Nc6 {[%clk 0:03:02]} 5. c4 {[%clk 0:02:50]}  b6 {[%clk 0:02:59]} 6. Nc3 {[%clk 0:02:50]}  Bb7 {[%clk 0:02:59]} 7. Be3 {[%clk 0:02:49]}  Nf6 {[%clk 0:02:59]} 8. Be2 {[%clk 0:02:49]}  Bc5 {[%clk 0:02:58]} 9. Nc2 {[%clk 0:02:46]}  d6 {[%clk 0:02:55]} 10. O-O {[%clk 0:02:46]}  O-O {[%clk 0:02:53]} 11. Qd2 {[%clk 0:02:41]}  Ne5 {[%clk 0:02:52]} 12. f3 {[%clk 0:02:35]}  a6 {[%clk 0:02:47]} 13. b3 {[%clk 0:02:31]}  Qc7 {[%clk 0:02:45]} 14. Rfd1 {[%clk 0:02:29]}  Rfd8 {[%clk 0:02:45]} 15. Bf1 {[%clk 0:02:29]}  h6 {[%clk 0:02:45]} 16. Qf2 {[%clk 0:02:24]}  Rac8 {[%clk 0:02:44]} 17. Rac1 {[%clk 0:02:24]}  Qb8 {[%clk 0:02:40]} 18. a4 {[%clk 0:02:23]}  Qa8 {[%clk 0:02:27]} 19. h3 {[%clk 0:02:22]}  d5 {[%clk 0:02:26]} 20. exd5 {[%clk 0:02:19]}  exd5 {[%clk 0:02:27]} 21. Nxd5 {[%clk 0:02:18]}  Nxd5 {[%clk 0:02:27]} 22. cxd5 {[%clk 0:02:17]}  Bxd5 {[%clk 0:02:27]} 23. Bxc5 {[%clk 0:02:14]}  Rxc5 {[%clk 0:02:25]} 24. Nd4 {[%clk 0:02:12]}  a5 {[%clk 0:01:59]} 25. Bb5 {[%clk 0:01:59]}  Rdc8 {[%clk 0:01:51]} 26. Rxc5 {[%clk 0:01:57]}  Rxc5 {[%clk 0:01:52]} 27. Re1 {[%clk 0:01:39]}  f6 {[%clk 0:01:48]} 28. f4 {[%clk 0:01:33]}  Ng6 {[%clk 0:01:31]} 29. Ne6 {[%clk 0:01:28]}  Rc3 {[%clk 0:01:19]} 30. Nc7 {[%clk 0:01:24]}  Rxc7 {[%clk 0:01:03]} 31. Re8+ {[%clk 0:01:23]}  Qxe8 {[%clk 0:01:03]} 32. Bxe8 {[%clk 0:01:23]}  Ne7 {[%clk 0:00:57]} 33. Bb5 {[%clk 0:01:01]}  Rc1+ {[%clk 0:00:57]} 34. Kh2 {[%clk 0:01:00]}  Rc5 {[%clk 0:00:41]} 35. Bc4 {[%clk 0:00:54]}  Bxc4 {[%clk 0:00:41]} 36. bxc4 {[%clk 0:00:54]}  Nf5 {[%clk 0:00:34]} 37. Qb2 {[%clk 0:00:47]}  Kh7 {[%clk 0:00:11]} 38. Qxb6 {[%clk 0:00:40]}  Rxc4 {[%clk 0:00:11]} 39. Qb1 {[%clk 0:00:39]}  Rxf4 {[%clk 0:00:03]} 40. g4 {[%clk 0:00:34]}  Rxa4 {[%clk 0:00:02]} 41. Qxf5+ {[%clk 0:00:31]}  Kg8 {[%clk 0:00:01]} 42. Qc8+ {[%clk 0:00:26]}  Kh7 {[%clk 0:00:01]} 43. Qc2+ {[%clk 0:00:26]} 1-0


[Site "https://www.chess.com"]

[Event "Titled Tuesday Blitz March 08 Early 2022"]
[White "Hess, Max"]
[Black "Seo, Jung Min"]
[WhiteFideId "24656666"]
[BlackFideId "1734687"]
[WhiteElo "2276"]
[BlackElo "2401"]
[Result "1-0"]
[Round "01"]
[TimeControl "180+1"]
[Date "2022.03.09"]
[WhiteClock "0:00:03"]
[BlackClock "0:00:09"]

1. d4 {[%clk 0:02:56]}  Nf6 {[%clk 0:02:59]} 2. Nf3 {[%clk 0:02:55]}  c5 {[%clk 0:03:00]} 3. d5 {[%clk 0:02:53]}  b5 {[%clk 0:03:00]} 4. c3 {[%clk 0:02:53]}  Bb7 {[%clk 0:02:58]} 5. e4 {[%clk 0:02:52]}  Nxe4 {[%clk 0:02:56]} 6. Bxb5 {[%clk 0:02:52]}  Qb6 {[%clk 0:02:52]} 7. c4 {[%clk 0:02:51]}  Nd6 {[%clk 0:02:48]} 8. Nc3 {[%clk 0:02:34]}  Nxb5 {[%clk 0:02:43]} 9. cxb5 {[%clk 0:02:15]}  d6 {[%clk 0:02:40]} 10. O-O {[%clk 0:02:13]}  Nd7 {[%clk 0:02:40]} 11. a4 {[%clk 0:02:08]}  g6 {[%clk 0:02:32]} 12. Re1 {[%clk 0:01:59]}  Bg7 {[%clk 0:02:30]} 13. Bg5 {[%clk 0:01:53]}  Nf6 {[%clk 0:02:29]} 14. Nd2 {[%clk 0:01:17]}  Qd8 {[%clk 0:02:26]} 15. Qe2 {[%clk 0:01:06]}  h6 {[%clk 0:02:25]} 16. Bh4 {[%clk 0:01:00]}  Qd7 {[%clk 0:02:15]} 17. Nc4 {[%clk 0:00:52]}  Kf8 {[%clk 0:02:14]} 18. a5 {[%clk 0:00:46]}  g5 {[%clk 0:02:14]} 19. Bg3 {[%clk 0:00:43]}  Bxd5 {[%clk 0:02:09]} 20. Nxd5 {[%clk 0:00:41]}  Nxd5 {[%clk 0:02:10]} 21. Rad1 {[%clk 0:00:40]}  Nf4 {[%clk 0:02:05]} 22. Bxf4 {[%clk 0:00:36]}  gxf4 {[%clk 0:02:06]} 23. Qe4 {[%clk 0:00:36]}  Rb8 {[%clk 0:02:03]} 24. b6 {[%clk 0:00:30]}  axb6 {[%clk 0:02:03]} 25. Nxb6 {[%clk 0:00:26]}  Qd8 {[%clk 0:01:56]} 26. Qxf4 {[%clk 0:00:23]}  Kg8 {[%clk 0:01:53]} 27. Nd5 {[%clk 0:00:18]}  e6 {[%clk 0:01:52]} 28. Nb6 {[%clk 0:00:18]}  d5 {[%clk 0:01:49]} 29. b3 {[%clk 0:00:19]}  h5 {[%clk 0:01:38]} 30. Rc1 {[%clk 0:00:19]}  Rxb6 {[%clk 0:01:37]} 31. axb6 {[%clk 0:00:19]}  Qxb6 {[%clk 0:01:38]} 32. Qe3 {[%clk 0:00:17]}  Bd4 {[%clk 0:01:36]} 33. Qd3 {[%clk 0:00:18]}  Rh6 {[%clk 0:01:33]} 34. Rc2 {[%clk 0:00:18]}  Rg6 {[%clk 0:01:33]} 35. g3 {[%clk 0:00:17]}  h4 {[%clk 0:01:32]} 36. Kg2 {[%clk 0:00:18]}  hxg3 {[%clk 0:01:32]} 37. hxg3 {[%clk 0:00:19]}  Qb7 {[%clk 0:01:32]} 38. Rh1 {[%clk 0:00:18]}  Kg7 {[%clk 0:01:31]} 39. Qf3 {[%clk 0:00:18]}  Bf6 {[%clk 0:01:28]} 40. Qh5 {[%clk 0:00:17]}  d4+ {[%clk 0:01:27]} 41. f3 {[%clk 0:00:18]}  Kf8 {[%clk 0:01:25]} 42. Re2 {[%clk 0:00:15]}  Qd5 {[%clk 0:01:23]} 43. Qxd5 {[%clk 0:00:15]}  exd5 {[%clk 0:01:23]} 44. Rh5 {[%clk 0:00:16]}  Bg5 {[%clk 0:01:07]} 45. f4 {[%clk 0:00:15]}  Bxf4 {[%clk 0:01:07]} 46. Kf3 {[%clk 0:00:11]}  Bxg3 {[%clk 0:01:03]} 47. Rxd5 {[%clk 0:00:12]}  Bd6 {[%clk 0:01:03]} 48. Ke4 {[%clk 0:00:10]}  Re6+ {[%clk 0:00:59]} 49. Kd3 {[%clk 0:00:10]}  Rg6 {[%clk 0:00:58]} 50. Kc4 {[%clk 0:00:09]}  Kg7 {[%clk 0:00:58]} 51. Re8 {[%clk 0:00:08]}  Rf6 {[%clk 0:00:55]} 52. Rd8 {[%clk 0:00:07]}  Be7 {[%clk 0:00:53]} 53. Re8 {[%clk 0:00:07]}  Bd6 {[%clk 0:00:52]} 54. Rd8 {[%clk 0:00:07]}  Bf8 {[%clk 0:00:47]} 55. Rg5+ {[%clk 0:00:07]}  Kh6 {[%clk 0:00:46]} 56. Rg3 {[%clk 0:00:05]}  Bg7 {[%clk 0:00:41]} 57. Kxc5 {[%clk 0:00:03]}  Rf5+ {[%clk 0:00:37]} 58. Kc4 {[%clk 0:00:04]}  Bf6 {[%clk 0:00:32]} 59. Rd6 {[%clk 0:00:04]}  Kh5 {[%clk 0:00:31]} 60. Rg2 {[%clk 0:00:04]}  Rf3 {[%clk 0:00:31]} 61. Rd5+ {[%clk 0:00:04]}  Kh4 {[%clk 0:00:30]} 62. b4 {[%clk 0:00:04]}  Rc3+ {[%clk 0:00:26]} 63. Kb5 {[%clk 0:00:05]}  d3 {[%clk 0:00:26]} 64. Rf2 {[%clk 0:00:05]}  Bg5 {[%clk 0:00:25]} 65. Rxf7 {[%clk 0:00:04]}  d2 {[%clk 0:00:24]} 66. Rh7+ {[%clk 0:00:04]}  Kg4 {[%clk 0:00:24]} 67. Rg7 {[%clk 0:00:05]}  Rc1 {[%clk 0:00:20]} 68. Rgxg5+ {[%clk 0:00:05]}  Kf4 {[%clk 0:00:21]} 69. Rxd2 {[%clk 0:00:04]}  Kxg5 {[%clk 0:00:20]} 70. Kb6 {[%clk 0:00:04]}  Kf6 {[%clk 0:00:20]} 71. b5 {[%clk 0:00:05]}  Ke5 {[%clk 0:00:20]} 72. Kb7 {[%clk 0:00:04]}  Ke6 {[%clk 0:00:21]} 73. b6 {[%clk 0:00:05]}  Ke7 {[%clk 0:00:20]} 74. Kb8 {[%clk 0:00:04]}  Rc3 {[%clk 0:00:20]} 75. b7 {[%clk 0:00:04]}  Rc1 {[%clk 0:00:19]} 76. Rd4 {[%clk 0:00:03]}  Rc4 {[%clk 0:00:09]} 77. Rxc4 {[%clk 0:00:03]} 1-0


[Site "https://www.chess.com"]

[Event "Titled Tuesday Blitz March 08 Early 2022"]
[White "Hryshchenko, Kamila"]
[Black "Corrales Jimenez, Fidel"]
[WhiteFideId "14147491"]
[BlackFideId "3506690"]
[WhiteElo "1929"]
[BlackElo "2541"]
[Result "1-0"]
[Round "01"]
[TimeControl "180+1"]
[Date "2022.03.08"]
[WhiteClock "0:00:26"]
[BlackClock "0:01:20"]

1. e4 {[%clk 0:02:58]}  c5 {[%clk 0:02:59]} 2. Nf3 {[%clk 0:02:56]}  d6 {[%clk 0:03:00]} 3. d4 {[%clk 0:02:53]}  cxd4 {[%clk 0:03:00]} 4. Nxd4 {[%clk 0:02:52]}  Nf6 {[%clk 0:03:01]} 5. Nc3 {[%clk 0:02:51]}  a6 {[%clk 0:03:01]} 6. Be2 {[%clk 0:02:46]}  e5 {[%clk 0:03:01]} 7. Nb3 {[%clk 0:02:40]}  Be7 {[%clk 0:03:02]} 8. O-O {[%clk 0:02:39]}  O-O {[%clk 0:03:01]} 9. h3 {[%clk 0:02:39]}  Be6 {[%clk 0:03:01]} 10. Be3 {[%clk 0:02:25]}  Nbd7 {[%clk 0:03:01]} 11. a4 {[%clk 0:02:24]}  Rc8 {[%clk 0:03:00]} 12. Qd3 {[%clk 0:02:03]}  Qc7 {[%clk 0:03:00]} 13. Rac1 {[%clk 0:01:54]}  Bc4 {[%clk 0:03:00]} 14. Qd2 {[%clk 0:01:48]}  Be6 {[%clk 0:02:55]} 15. Kh1 {[%clk 0:01:19]}  h6 {[%clk 0:02:55]} 16. f4 {[%clk 0:01:08]}  exf4 {[%clk 0:02:56]} 17. Bxf4 {[%clk 0:01:07]}  Ne5 {[%clk 0:02:57]} 18. Rce1 {[%clk 0:01:03]}  Bxb3 {[%clk 0:02:55]} 19. cxb3 {[%clk 0:01:03]}  Rfe8 {[%clk 0:02:55]} 20. Bxe5 {[%clk 0:00:55]}  dxe5 {[%clk 0:02:54]} 21. Bc4 {[%clk 0:00:55]}  Bb4 {[%clk 0:02:53]} 22. Rxf6 {[%clk 0:00:53]}  Bxc3 {[%clk 0:02:50]} 23. bxc3 {[%clk 0:00:40]}  gxf6 {[%clk 0:02:29]} 24. Qxh6 {[%clk 0:00:39]}  f5 {[%clk 0:02:11]} 25. exf5 {[%clk 0:00:38]}  Qc5 {[%clk 0:01:52]} 26. Re3 {[%clk 0:00:28]}  Qxe3 {[%clk 0:01:47]} 27. Qxe3 {[%clk 0:00:27]}  Kf8 {[%clk 0:01:48]} 28. f6 {[%clk 0:00:26]}  Rxc4 {[%clk 0:01:42]} 29. Qh6+ {[%clk 0:00:25]}  Kg8 {[%clk 0:01:20]} 30. Qg7# {[%clk 0:00:26]} 1-0


[Site "https://www.chess.com"]